Service Area,Expense Type,Date,Transaction Number,Amount,Supplier
Aiming High For Disabled Children,Advertising & Public,2010-04-12,5000071496,602.2,Iw County Press Ltd
Aiming High For Disabled Children,Advertising & Public,2010-04-23,5000074028,-4680.0,Community Care
Aiming High For Disabled Children,B/In Prof Svs   Curr,2010-04-26,5000074521,4680.0,Reed Business Information Ltd
Aiming High For Disabled Children,Professional Service,2010-07-13,5000089828,711.55,Alison John & Assoc. Ltd
Aiming High For Disabled Children,Grants To Ext Bodies,2010-08-02,1900209362,10000.0,West Wight Sports Centre Trust Ltd
Aiming High For Disabled Children,Grants To Ext Bodies,2010-08-02,1900209350,9853.0,Ymca Fairthorne Group
Aiming High For Disabled Children,Grants To Ext Bodies,2010-08-02,1900209412,9132.0,Goodleaf Tree Climbing
Aiming High For Disabled Children,Train And Conference,2010-08-06,5000094661,711.55,Alison John & Assoc. Ltd
Aiming High For Disabled Children,Grants To Ext Bodies,2010-08-12,1900214701,800.0,Goodleaf Tree Climbing
Aiming High For Disabled Children,Grants To Ext Bodies,2010-08-12,1900214699,10000.0,National Autistic Society
Aiming High For Disabled Children,Grants To Ext Bodies,2010-08-12,1900214700,9500.0,U K Sailing Academy
Aiming High For Disabled Children,Grants To Ext Bodies,2010-09-02,1900226256,2500.0,National Autistic Society
Aiming High For Disabled Children,Grants To Ext Bodies,2010-09-02,1900226255,10000.0,Nettlecombe Farm
Aiming High For Disabled Children,Pay To Vol And Other,2010-10-05,1900238761,50000.0,Friends Of Beaulieu
Aiming High For Disabled Children,Grants To Ext Bodies,2010-10-14,5000106606,10000.0,Isle Of Wight Inclusive
Aiming High For Disabled Children,Pay To Pvte Contract,2010-11-25,5000114476,-5000.0,Core Childcare
Aiming High For Disabled Children,Pay To Pvte Contract,2010-11-25,5000114477,2083.35,Core Childcare
Aiming High For Disabled Children,Pay To Pvte Contract,2010-11-25,5000114468,5000.0,Core Childcare
Aiming High For Disabled Children,Pay To Pvte Contract,2010-11-26,5000114619,4692.22,The Childrens Society
Aiming High For Disabled Children,Pay To Pvte Contract,2010-11-26,5000114618,4692.22,The Childrens Society
Aiming High For Disabled Children,Pay To Pvte Contract,2010-11-26,5000114617,4692.22,The Childrens Society
Aiming High For Disabled Children,Pay To Pvte Contract,2010-11-26,5000114616,4692.22,The Childrens Society
Aiming High For Disabled Children,Pay To Pvte Contract,2010-11-26,5000114614,4692.22,The Childrens Society
Aiming High For Disabled Children,Pay To Pvte Contract,2010-11-26,5000114612,4692.22,The Childrens Society
Aiming High For Disabled Children,Printing Costs,2010-12-09,5000116508,608.0,Crossprint Ltd
Aiming High For Disabled Children,Pay To Pvte Contract,2010-12-13,5000116780,-2447.97,Core Childcare
Aiming High For Disabled Children,Pay To Pvte Contract,2010-12-13,5000116761,2447.94,Core Childcare
Aiming High For Disabled Children,Pay To Pvte Contract,2010-12-17,5000117977,2083.35,Core Childcare
Aiming High For Disabled Children,Grants To Ext Bodies,2010-12-20,1900273595,3000.0,West Wight Sports Centre Trust Ltd
Aiming High For Disabled Children,Grants To Ext Bodies,2010-12-20,1900273594,8145.0,Ymca Fairthorne Group
Aiming High For Disabled Children,Grants To Ext Bodies,2011-01-07,1900283946,6000.0,Saturday Club For Deaf Children
Aiming High For Disabled Children,Pay To Pvte Contract,2011-03-03,5000130241,4692.22,The Childrens Society
Aiming High For Disabled Children,Pay To Pvte Contract,2011-03-03,5000130240,4692.22,The Childrens Society
Aiming High For Disabled Children,Pay To Pvte Contract,2011-03-07,5000130707,4815.0,Park Resorts Limited
Aiming High For Disabled Children,Pay To Pvte Contract,2011-03-10,5000131564,-2083.35,Core Childcare
Aiming High For Disabled Children,Pay To Pvte Contract,2011-03-10,5000131587,2172.0,Core Childcare
Aiming High For Disabled Children,Grants To Ext Bodies,2011-03-25,1900317924,799.98,National Autistic Society
Aiming High For Disabled Children,Grants To Ext Bodies,2011-03-25,1900317893,2400.0,Saturday Club For Deaf Children
Aiming High For Disabled Children,Pay To Pvte Contract,2011-03-28,5000134138,4692.22,The Childrens Society
Aiming High For Disabled Children,Minor Works,2011-03-28,5000134144,1504.73,C & J Ground Maintenance
Aiming High For Disabled Children,Professional Service,2011-03-31,5000134922,1900.0,Sf30 Ltd
Aiming High For Disabled Children,Pay To Pvte Contract,2011-03-31,5000134959,3450.0,Core Childcare
Aiming High For Disabled Children,Grants To Ext Bodies,2011-04-08,1900325039,764.78,West Wight Sports Centre Trust Ltd
Aiming High For Disabled Children,Grants To Ext Bodies,2011-04-13,1900326140,1500.0,Goodleaf Tree Climbing
Aiming High For Disabled Children,Grants To Ext Bodies,2011-04-13,1900325448,1500.0,National Autistic Society
Aiming High For Disabled Children,Grants To Ext Bodies,2011-04-13,1900325450,1000.0,West Wight Sports Centre Trust Ltd
Aiming High For Disabled Children,Grants To Ext Bodies,2011-04-13,1900326131,4000.0,U K Sailing Academy
Aiming High For Disabled Children,Grants To Ext Bodies,2011-04-20,1900330884,9498.0,Ymca Fairthorne Group
Aiming High For Disabled Children,Pay To Pvte Contract,2011-04-28,5000139005,-4815.0,Park Resorts Limited
Aiming High For Disabled Children,Pay To Pvte Contract,2011-05-04,5000139713,4275.0,Park Resorts Limited
Aiming High For Disabled Children,Pay To Pvte Contract,2011-05-06,5105662173,-750.0,Park Resorts Limited
Aiming High For Disabled Children,Pay To Pvte Contract,2011-05-10,5000140420,3383.33,Core Childcare
Aiming High For Disabled Children,Professional Service,2011-05-23,5000142404,900.0,Sf30 Ltd
Aiming High For Disabled Children,Professional Service,2011-05-23,5000142401,-1900.0,Sf30 Ltd
Aiming High For Disabled Children,Pay To Pvte Contract,2011-07-05,5000148279,-4692.22,The Childrens Society
Aiming High For Disabled Children,Pay To Vol And Other,2011-07-27,5000151905,5000.0,Rural Community Council
Aiming High For Disabled Children,Pay To Vol And Other,2011-08-08,1900381486,951.6,Scallywags Fun Club [Cc]
Aiming High For Disabled Children,Pay To Vol And Other,2011-08-08,1900381483,719.55,Scallywags Fun Club [Cc]
Aiming High For Disabled Children,Pay To Pvte Contract,2011-08-16,5000154694,690.0,Core Childrens Services Ltd
Aiming High For Disabled Children,Pay To Pvte Contract,2011-09-01,5105684598,690.0,Core Childrens Services Ltd
Aiming High For Disabled Children,Pay To Pvte Contract,2011-09-01,5105684599,-690.0,Core Childrens Services Ltd
Aiming High For Disabled Children,Pay To Pvte Contract,2011-09-28,1900401631,2334.0,"Ymca Winchester House,"
Aiming High For Disabled Children,Pay To Pvte Contract,2011-09-29,1900405940,8001.0,U K Sailing Academy
Aiming High For Disabled Children,Pay To Pvte Contract,2011-09-29,1900405937,666.0,West Wight Sports Centre Trust Ltd
Aiming High For Disabled Children,Pay To Pvte Contract,2011-09-29,1900405934,2317.5,National Autistic Society
Aiming High For Disabled Children,Pay To Pvte Contract,2011-09-29,1900405939,2949.75,Goodleaf Tree Climbing
Aiming High For Disabled Children,Pay To Pvte Contract,2011-09-29,1900405933,666.75,Isle Of Wight Inclusive
Aiming High For Disabled Children,Pay To Pvte Contract,2011-09-29,1900405941,1167.0,Ymca Winchester Hse Day Nursery[Cc]
Aiming High For Disabled Children,Pay To Pvte Contract,2011-09-30,5000160748,690.0,Core Childrens Services Ltd
Aiming High For Disabled Children,Pay To Pvte Contract,2011-09-30,5000160750,1150.0,Core Childrens Services Ltd
Aiming High For Disabled Children,Pay To Pvte Contract,2011-09-30,5000160749,1380.0,Core Childrens Services Ltd
Aiming High For Disabled Children,Pay To Pvte Contract,2011-09-30,5000160753,3275.0,Core Childrens Services Ltd
Aiming High For Disabled Children,Pay To Pvte Contract,2011-09-30,5000160751,3496.0,Core Childrens Services Ltd
Aiming High For Disabled Children,Pay To Pvte Contract,2011-10-28,5000164325,2272.0,Redacted Personal Data
Aiming High For Disabled Children,Pay To Pvte Contract,2011-11-01,5000164656,6400.0,Core Childrens Services Ltd
Aiming High For Disabled Children,Pay To Pvte Contract,2011-11-01,5000164657,1600.0,Core Childrens Services Ltd
Aiming High For Disabled Children,Pay To Pvte Contract,2011-11-25,5000168838,3288.0,Core Childrens Services Ltd
Aiming High For Disabled Children,Pay To Pvte Contract,2011-11-28,5000169068,3392.0,Core Childrens Services Ltd
Aiming High For Disabled Children,Pay To Pvte Contract,2011-12-01,5000169493,-3392.0,Core Childrens Services Ltd
Aiming High For Disabled Children,Pay To Pvte Contract,2011-12-01,5000169494,3393.0,Core Childrens Services Ltd
Aiming High For Disabled Children,Pay To Pvte Contract,2011-12-09,5000171448,-690.0,Core Childrens Services Ltd
